fUST/lending_fUST_20240427
["ID","MTS","AMOUNT","RATE_DAILY","PERIOD"]
[323717407,1714189849532,-154.84515485,0.000241,2]
[323717408,1714189849542,-9631.56001321,0.000241,7]
[323717409,1714189849556,-151.0,0.000241,2]
[323717410,1714189849565,-151.0,0.000241,2]
[323717411,1714189849574,-322.753185,0.000241,2]
[323717412,1714189849584,-322.753185,0.000241,2]
[323717413,1714189849594,-151.0,0.000241,2]
[323717414,1714189849603,-151.0,0.000241,2]
[323717415,1714189849613,-151.0,0.000241,2]
[323717416,1714189849624,-150.0,0.0002415,7]
[323717417,1714189849633,-300.0,0.00024604,2]
[323717418,1714189849642,-502.1399433,0.00024657,2]
[323717419,1714189849651,-500.0,0.00024657,2]
[323717420,1714189849660,-400.0,0.00024658,2]
[323717421,1714189849670,-501.22242437,0.00024658,2]
[323717422,1714189849680,-200.0,0.00024658,2]
[323717423,1714189849689,-380.0,0.00024658,2]
[323717424,1714189849698,-927.848482,0.00024712,2]
[323717425,1714189849707,-927.848482,0.00024712,2]
[323717426,1714189849716,-500.0,0.00024712,2]
[323717427,1714189849726,-151.0,0.00024767,2]
[323717428,1714189849735,-1463.635139,0.00024767,2]
[323717429,1714189849745,-1463.635139,0.00024767,2]
[323717430,1714189849755,-215.301323,0.00024767,2]
[323717431,1714189849765,-215.301323,0.00024767,2]
[323717432,1714189849774,-226.818667,0.00024767,2]
[323717433,1714189849783,-226.818667,0.00024767,2]
[323717434,1714189849792,-500.0,0.00024767,2]
[323717435,1714189849801,-296.651016,0.00024767,2]
[323717436,1714189849810,-296.651016,0.00024767,2]
[323717437,1714189849819,-524.751574,0.00024767,2]
[323717438,1714189849828,-1298.71688,0.00024767,2]
[323717439,1714189849837,-524.751574,0.00024767,2]
[323717440,1714189849846,-1298.71688,0.00024767,2]
[323717441,1714189849855,-500.0,0.00024821,2]
[323717442,1714189849864,-974.045545,0.00024821,2]
[323717443,1714189849873,-974.045545,0.00024821,2]
[323717444,1714189849882,-151.0,0.00024821,2]
[323717445,1714189849891,-151.0,0.00024821,2]
[323717446,1714189849900,-151.0,0.00024821,2]
[323717447,1714189849909,-460.921047,0.00024821,2]
[323717448,1714189849919,-460.921047,0.00024821,2]
[323717449,1714189849929,-500.0,0.00024876,2]
[323717450,1714189849939,-264.3007583,0.00024877,2]
[323717451,1714189849948,-157.00154045,0.00024908,2]
[323717452,1714189849958,-155.23706381,0.00024909,2]
[323717453,1714189849967,-203.050478,0.00024931,2]
[323717454,1714189849976,-203.050478,0.00024931,2]
[323717455,1714189849986,-500.0,0.00024931,2]
[323717456,1714189849995,-500.0,0.00024986,2]
[323717457,1714189850005,-1834.67477944,0.00025,2]
[323717458,1714189850015,-500.0,0.00025041,2]
[323717459,1714189850025,-500.0,0.00025095,2]
[323717460,1714189850035,-500.0,0.0002515,2]
[323717461,1714189850044,-500.0,0.00025205,2]
[323717462,1714189850053,-167.57667404,0.0002522,2]
[323717463,1714189850064,-500.0,0.0002526,2]
[323717464,1714189850073,-823.0,0.00025288,2]
[323717465,1714189850082,-500.0,0.00025315,2]
[323717466,1714189850091,-500.0,0.00025369,2]
[323717467,1714189850101,-167.66824748,0.00025512,2]
[323717468,1714189850110,-417.0,0.00025549,2]
[323717469,1714189850119,-150.0,0.00025549,2]
[323717470,1714189850129,-150.0,0.0002564,10]
[323717471,1714189850139,-977.8,0.0002587,2]
[323717472,1714189850148,-153.0,0.00025972,2]
[323717473,1714189850158,-153.0,0.00025972,2]
[323717474,1714189850168,-153.0,0.00025972,2]
[323717475,1714189850178,-153.0,0.00025972,2]
[323717476,1714189850188,-152.0,0.00026,2]
[323717477,1714189850198,-322.753185,0.0002609,2]
[323717478,1714189850208,-322.753185,0.0002609,2]
[323717479,1714189850218,-151.0,0.0002609,2]
[323717480,1714189850227,-25244.91520737,0.000263,2]
[323717481,1714189850237,-151.0,0.000263,2]
[323717482,1714189850248,-151.0,0.000263,2]
[323717483,1714189850260,-322.753185,0.000263,2]
[323717484,1714189850270,-322.753185,0.000263,2]
[323717485,1714189850279,-151.0,0.000263,2]
[323717486,1714189850289,-151.0,0.000263,2]
[323717487,1714189850298,-151.0,0.000263,2]
[323717488,1714189850308,-151.0,0.000263,2]
[323717489,1714189850317,-1463.635139,0.000263,2]
[323717490,1714189850326,-1463.635139,0.000263,2]
[323717491,1714189850435,-203.050478,0.000263,2]
[323717492,1714189850444,-203.050478,0.000263,2]
[323717493,1714189850454,-927.848482,0.000263,2]
[323717494,1714189850464,-927.848482,0.000263,2]
[323717495,1714189850473,-215.301323,0.000263,2]
[323717496,1714189850482,-215.301323,0.000263,2]
[323717497,1714189850491,-226.818667,0.000263,2]
[323717498,1714189850505,-226.818667,0.000263,2]
[323717499,1714189850515,-974.045545,0.000263,2]
[323717500,1714189850525,-974.045545,0.000263,2]
[323717501,1714189850534,-151.0,0.000263,2]
[323717502,1714189850543,-191.593648,0.000263,2]
[323717503,1714189850554,-296.651016,0.000263,2]
[323717504,1714189850564,-296.651016,0.000263,2]
[323717505,1714189850574,-524.751574,0.000263,2]
[323717506,1714189850583,-1298.71688,0.000263,2]
[323717507,1714189850592,-524.751574,0.000263,2]
[323717508,1714189850602,-1298.71688,0.000263,2]
[323717509,1714189850611,-151.0,0.000263,2]
[323717510,1714189850620,-460.921047,0.000263,2]
[323717511,1714189850630,-460.921047,0.000263,2]
[323717512,1714189850639,-390.86271191,0.000266,2]
[323717513,1714189850648,-309.4372031,0.00026877,2]
[323717514,1714189850657,-320.65450041,0.00026997,2]
[323717515,1714189850667,-763.0,0.000271,2]
[323717516,1714189850677,-241.0,0.000271,2]
[323717517,1714189850686,-1617.5633,0.000271,2]
[323717518,1714189850695,-756.30915944,0.0002714,2]
[323717519,1714189850704,-150.0,0.0002714,13]
[323717520,1714189850714,-2426.76,0.00027397,2]
[323717521,1714189850723,-500.0,0.00027397,2]
[323717522,1714189850732,-501.01824511,0.00027397,2]
[323717523,1714189850742,-311.08626676,0.00027397,2]
[323717524,1714189850752,-200.0,0.00027397,2]
[323717525,1714189850762,-500.0,0.00027397,2]
[323717526,1714189850771,-500.0,0.00027397,2]
[323717527,1714189850780,-500.0,0.00027397,2]
[323717528,1714189850790,-500.0,0.00027397,2]
[323717529,1714189850799,-500.0,0.00027397,2]
[323717530,1714189850808,-500.0,0.00027397,2]
[323717531,1714189850817,-500.0,0.00027397,2]
[323717532,1714189850826,-500.0,0.00027397,2]
[323717533,1714189850834,-500.0,0.00027397,2]
[323717534,1714189850843,-500.0,0.00027397,2]
[323717535,1714189850852,-500.0,0.00027397,2]
[323717536,1714189850861,-459.93148318,0.00027397,2]
[323717537,1714189850870,-500.0,0.00027397,2]
[323717538,1714189850880,-500.0,0.00027397,2]
[323717539,1714189850889,-500.0,0.00027397,2]
[323717540,1714189850898,-500.0,0.00027397,2]
[323717541,1714189850907,-500.0,0.00027397,2]
[323717542,1714189850917,-500.0,0.00027397,2]
[323717543,1714189850926,-500.0,0.00027397,2]
[323717544,1714189850935,-151.0,0.00027397,2]
[323717545,1714189850944,-348.4050559,0.00027397,2]
[323717546,1714189850954,-500.0,0.00027397,2]
[323717547,1714189850966,-151.0,0.00027397,2]
[323717548,1714189850975,-500.0,0.00027397,2]
[323717549,1714189850984,-500.0,0.00027397,2]
[323717550,1714189850993,-501.26577261,0.00027397,2]
[323717551,1714189851004,-500.0,0.00027397,2]
[323717552,1714189851013,-500.0,0.00027397,2]
[323717553,1714189851022,-500.0,0.00027397,2]
[323717554,1714189851031,-500.0,0.00027397,2]
[323717555,1714189851041,-500.0,0.00027397,2]
[323717556,1714189851051,-500.0,0.00027397,2]
[323717557,1714189851060,-542.04712369,0.00027397,2]
[323717558,1714189851070,-500.0,0.00027397,2]
[323717559,1714189851079,-500.0,0.00027397,2]
[323717560,1714189851088,-500.0,0.00027397,2]
[323717561,1714189851098,-500.0,0.00027397,2]
[323717562,1714189851107,-500.0,0.00027397,2]
[323717563,1714189851116,-189.77925494,0.00027397,2]
[323717564,1714189851126,-610.33123804,0.00027397,2]
[323717565,1714189851135,-500.0,0.00027397,2]
[323717566,1714189851144,-500.62516351,0.00027397,2]
[323717567,1714189851153,-500.4210674,0.00027397,2]
[323717568,1714189851162,-500.0,0.00027397,2]
[323717569,1714189851171,-500.0,0.00027397,2]
[323717570,1714189851181,-500.0,0.00027397,2]
[323717571,1714189851190,-500.0,0.00027397,2]
[323717572,1714189851200,-500.0,0.00027397,2]
[323717573,1714189851209,-980.59,0.00027397,2]
[323717574,1714189851218,-500.0,0.00027397,2]
[323717575,1714189851227,-260.97341421,0.00027397,2]
[323717576,1714189851236,-500.0,0.00027397,2]
[323717577,1714189851246,-500.0,0.00027397,2]
[323717578,1714189851257,-625.31677864,0.00027397,2]
[323717579,1714189851266,-500.0,0.00027397,2]
[323717580,1714189851276,-500.0,0.00027397,2]
[323717581,1714189851285,-500.0,0.00027397,2]
[323717582,1714189851294,-975.71,0.00027397,2]
[323717583,1714189851303,-462.26467307,0.00027397,2]
[323717584,1714189851313,-500.0,0.00027397,2]
[323717585,1714189851322,-683.61,0.00027397,2]
[323717586,1714189851332,-500.0,0.00027397,2]
[323717587,1714189851341,-500.0,0.00027397,2]
[323717588,1714189851350,-502.06922752,0.00027397,2]
[323717589,1714189851359,-500.0,0.00027397,2]
[323717590,1714189851368,-500.0,0.00027397,2]
[323717591,1714189851378,-568.95,0.00027397,2]
[323717592,1714189851387,-912.08,0.00027397,2]
[323717593,1714189851396,-500.0,0.00027397,2]
[323717594,1714189851405,-520.61,0.00027397,2]
[323717595,1714189851415,-3030.2,0.00027397,2]
[323717596,1714189851425,-500.0,0.00027397,2]
[323717597,1714189851434,-500.0,0.00027397,2]
[323717598,1714189851443,-500.0,0.00027397,2]
[323717599,1714189851452,-500.0,0.00027397,2]
[323717600,1714189851461,-719.46,0.00027397,2]
[323717601,1714189851471,-500.0,0.00027397,2]
[323717602,1714189851480,-500.0,0.00027397,2]
[323717603,1714189851490,-614.93248309,0.00027397,2]
[323717604,1714189851501,-554.55,0.00027397,2]
[323717605,1714189851511,-500.0,0.00027397,2]
[323717606,1714189851521,-621.0,0.00027397,2]
[323717607,1714189851530,-500.0,0.00027397,2]
[323717608,1714189851540,-500.0,0.00027397,2]
[323717609,1714189851553,-503.59656469,0.00027397,2]
[323717610,1714189851562,-281.18469195,0.00027397,2]
[323717611,1714189851572,-500.0,0.00027397,2]
[323717612,1714189851581,-1024.94,0.00027397,2]
[323717613,1714189851592,-505.3,0.00027397,2]
[323717614,1714189851601,-500.0,0.00027397,2]
[323717615,1714189851610,-910.14,0.00027397,2]
[323717616,1714189851620,-500.0,0.00027397,2]
[323717617,1714189851630,-500.0,0.00027397,2]
[323717618,1714189851639,-500.0,0.00027397,2]
[323717619,1714189851649,-500.0,0.00027397,2]
[323717620,1714189851658,-500.0,0.00027397,2]
[323717621,1714189851667,-500.0,0.00027397,2]
[323717622,1714189851677,-500.0,0.00027397,2]
[323717623,1714189851686,-204.42399175,0.00027397,2]
[323717624,1714189851695,-500.0,0.00027397,2]
[323717625,1714189851705,-500.0,0.00027397,2]
[323717626,1714189851714,-500.0,0.00027397,2]
[323717627,1714189851724,-500.0,0.00027397,2]
[323717628,1714189851733,-500.0,0.00027397,2]
[323717629,1714189851743,-500.0,0.00027397,2]
[323717630,1714189851753,-1179.15,0.00027397,2]
[323717631,1714189851763,-832.27,0.00027397,2]
[323717632,1714189851772,-500.0,0.00027397,2]
[323717633,1714189851781,-500.0,0.00027397,2]
[323717634,1714189851790,-500.0,0.00027397,2]
[323717635,1714189851800,-500.0,0.00027397,2]
[323717636,1714189851809,-500.0,0.00027397,2]
[323717637,1714189851819,-500.0,0.00027397,2]
[323717638,1714189851828,-500.0,0.00027397,2]
[323717639,1714189851837,-500.0,0.00027397,2]
[323717640,1714189851847,-500.0,0.00027397,2]
[323717641,1714189851856,-500.0,0.00027397,2]
[323717642,1714189851865,-500.0,0.00027397,2]
[323717643,1714189851875,-500.0,0.00027397,2]
[323717644,1714189851884,-500.0,0.00027397,2]
[323717645,1714189851893,-500.0,0.00027397,2]
[323717646,1714189851903,-500.0,0.00027397,2]
[323717647,1714189851912,-478.92790905,0.00027397,2]
[323717648,1714189851922,-500.0,0.00027397,2]
[323717649,1714189851931,-500.0,0.00027397,2]
[323717650,1714189851940,-500.0,0.00027397,2]
[323717651,1714189851949,-323.1153176,0.00027397,2]
[323717652,1714189851958,-484.3772502,0.00027397,2]
[323717653,1714189851968,-1280.32,0.00027397,2]
[323717654,1714189851977,-503.37042866,0.00027397,2]
[323717655,1714189851986,-500.0,0.00027397,2]
[323717656,1714189851996,-394.70461362,0.00027397,2]
[323717657,1714189852006,-500.0,0.00027397,2]
[323717658,1714189852015,-500.0,0.00027397,2]
[323717659,1714189852024,-500.0,0.00027397,2]
[323717660,1714189852033,-500.0,0.00027397,2]
[323717661,1714189852043,-500.0,0.00027397,2]
[323717662,1714189852052,-1959.75,0.00027397,2]
[323717663,1714189852061,-500.0,0.00027397,2]
[323717664,1714189852070,-500.0,0.00027397,2]
[323717665,1714189852080,-500.0,0.00027397,2]
[323717666,1714189852089,-500.0,0.00027397,2]
[323717667,1714189852098,-500.0,0.00027397,2]
[323717668,1714189852107,-208.87210491,0.00027397,2]
[323717669,1714189852117,-500.0,0.00027397,2]
[323717670,1714189852128,-500.0,0.00027397,2]
[323717671,1714189852138,-501.1423942,0.00027397,2]
[323717672,1714189852148,-253.13710103,0.00027397,2]
[323717673,1714189852158,-500.0,0.00027397,2]
[323717674,1714189852167,-351.9113846,0.00027397,2]
[323717675,1714189852176,-500.0,0.00027397,2]
[323717676,1714189852186,-1218.36,0.00027397,2]
[323717677,1714189852195,-500.0,0.00027397,2]
[323717678,1714189852204,-500.0,0.00027397,2]
[323717679,1714189852214,-500.0,0.00027397,2]
[323717680,1714189852223,-1689.31,0.00027397,2]
[323717681,1714189852233,-518.27,0.00027397,2]
[323717682,1714189852335,-500.0,0.00027397,2]
[323717683,1714189852344,-480.95554186,0.00027397,2]
[323717684,1714189852353,-250.8222909,0.00027397,2]
[323717685,1714189852363,-500.0,0.00027397,2]
[323717686,1714189852372,-1454.86,0.00027397,2]
[323717687,1714189852382,-500.0,0.00027397,2]
[323717688,1714189852391,-500.0,0.00027397,2]
[323717689,1714189852400,-2883.15,0.00027397,2]
[323717690,1714189852410,-500.0,0.00027397,2]
[323717691,1714189852420,-500.0,0.00027397,2]
[323717692,1714189852429,-500.0,0.00027397,2]
[323717693,1714189852438,-640.87,0.00027397,2]
[323717694,1714189852447,-153.65369355,0.00027397,2]
[323717747,1714190744171,-158.77233577,0.00014718,2]
[323717761,1714190950095,-154.82968734,0.0001471,2]
[323717762,1714190950116,-928.19592699,0.00014711,2]
[323717763,1714190950135,-154.82968734,0.00014712,2]
[323717764,1714190950155,-109.59710409,0.00014728,2]
[323717765,1714190952155,-155.02233795,0.0001471,2]
[323717766,1714190954117,-564.82677522,0.0001471,2]
[323717767,1714190954147,-110.88178888,0.00014728,2]
[323717772,1714191010923,-730.38126429,0.00018207,2]
[323717773,1714191010946,-190.195193,0.00018208,2]
[323717774,1714191010968,-229.42354271,0.00018332,2]
[323717803,1714191031826,-2146.19732949,0.00018332,2]
[323717804,1714191031836,-176.7795817,0.00018343,2]
[323717805,1714191031845,-184.2126802,0.00018525,2]
[323717806,1714191031855,-719.84911317,0.00018899,2]
[323717807,1714191031865,-186.72757023,0.000189,2]
[323717808,1714191031874,-154.82968734,0.00018998,2]
[323717809,1714191031883,-927.73093599,0.00018998,2]
[323717810,1714191031893,-188.92206727,0.00019299,2]
[323717811,1714191031904,-300.0,0.00019498,2]
[323717812,1714191031915,-161.23783485,0.00019499,2]
[323717837,1714191037936,-1159.83412878,0.00019499,2]
[323717842,1714191037976,-619.23245383,0.00019499,2]
[323718059,1714191040105,-252.98333116,0.00019499,2]
[323718542,1714191045820,-927.96343149,0.00018998,2]
[323718543,1714191045830,-604.87837679,0.00019499,2]
[323718544,1714191045874,-5132.40091697,0.00019499,2]
[323718545,1714191045884,-5000.0,0.000195,2]
[323718546,1714191045893,-2000.0,0.000199,2]
[323718547,1714191045905,-267.19,0.0001999,3]
[323718548,1714191045920,-155.31677567,0.00019998,2]
[323718549,1714191045929,-155.14781281,0.00019998,2]
[323718550,1714191045946,-154.97070061,0.00019998,2]
[323718551,1714191045964,-155.45510198,0.00019998,2]
[323718552,1714191045975,-1057.60563749,0.00019998,2]
[323718553,1714191045986,-233.21429867,0.00019998,2]
[323718555,1714191045996,-183.80738667,0.00019998,2]
[323718557,1714191046005,-467.1718599,0.00019998,2]
[323718558,1714191046015,-836.61463619,0.00019998,2]
[323718559,1714191046025,-628.3290348,0.00019999,2]
[323718560,1714191046034,-7195.31634552,0.0002,2]
[323718561,1714191046045,-735.7022111,0.0002,2]
[323718562,1714191046056,-3938.24855266,0.0002,2]
[323718575,1714191936184,-154.82968734,0.00016382,2]
[323718576,1714191936204,-939.04672329,0.00016382,2]
[323718577,1714191936227,-157.13367824,0.00016383,2]
[323718578,1714191936249,-92.90747502,0.00016383,2]
[323718579,1714192032143,-154.84515485,0.00014728,2]
[323718580,1714192034093,-145.15484515,0.00014728,2]
[323718581,1714192034114,-1852.70502715,0.000162,2]
[323718614,1714192232060,-312.79447259,0.00016282,2]
[323718615,1714192232070,-154.82968734,0.00016282,2]
[323718616,1714192232079,-165.40547914,0.00016283,2]
[323718617,1714192232089,-2007.59846401,0.00016383,2]
[323718618,1714192232099,-216.56047838,0.00016392,2]
[323718619,1714192232108,-339.135,0.00016953,2]
[323718620,1714192232118,-600.6598698,0.00017198,2]
[323718621,1714192232128,-1305.9741287,0.00017357,2]
[323718622,1714192232137,-593.59974677,0.00017998,2]
[323718623,1714192232147,-165.40547914,0.00018092,2]
[323718624,1714192232157,-174.94131034,0.000185,2]
[323718625,1714192232166,-174.94131034,0.000185,2]
[323718626,1714192232177,-150.0,0.000189,2]
[323718627,1714192232265,-154.82968734,0.00018998,2]
[323718628,1714192232293,-154.86062544,0.00019304,2]
[323718629,1714192232302,-300.0,0.00019797,2]
[323718630,1714192232313,-300.0,0.00019797,2]
[323718631,1714192232322,-2000.0,0.00019798,2]
[323718632,1714192232331,-152.6854793,0.00019799,2]
[323718633,1714192232341,-63473.45048987,0.00019898,2]
[323718634,1714192232352,-7824.91623332,0.00019899,2]
[323718635,1714192232361,-165.40547914,0.000199,2]
[323718636,1714192232371,-628.3290348,0.00019978,2]
[323718637,1714192232381,-155.02233795,0.00019998,2]
[323718638,1714192232390,-156.16170422,0.00019998,2]
[323718639,1714192232400,-273.15046244,0.00019998,2]
[323718640,1714192232410,-155.11456056,0.00019998,2]
[323718641,1714192232419,-521.17035883,0.00019998,2]
[323718642,1714192232428,-719.84911317,0.00019998,2]
[323718643,1714192232438,-157.04383462,0.00019998,2]
[323718644,1714192232447,-154.89156354,0.00019998,2]
[323718645,1714192232456,-938.58226721,0.00019998,2]
[323718646,1714192232466,-3056.83459344,0.00019998,2]
[323718647,1714192232477,-1826.87211907,0.00019998,2]
[323718648,1714192232487,-678.16272998,0.00019999,2]
[323718649,1714192232497,-55518.54800585,0.0002,2]
[323718650,1714192232508,-80000.0,0.0002,2]
[323718651,1714192232517,-329.804469,0.0002,2]
[323718652,1714192232527,-155.091384,0.0002,2]
[323718653,1714192232536,-150.0,0.00020497,2]
[323718654,1714192232545,-733.3,0.0002173,2]
[323718655,1714192232554,-420.0,0.00021777,2]
[323718656,1714192232563,-192.45402115,0.00022,2]
[323718657,1714192232572,-152.68547924,0.00022201,2]
[323718658,1714192232581,-713.83575721,0.00023,2]
[323718659,1714192232590,-447.0,0.00023,2]
[323718660,1714192232600,-447.0,0.00023288,2]
[323718661,1714192232610,-150.0,0.00023497,2]
[323718662,1714192232619,-447.0,0.00023562,2]
[323718663,1714192232628,-447.0,0.00023836,2]
[323718664,1714192232638,-150.0,0.000239,2]
[323718665,1714192232648,-733.3,0.0002391,2]
[323718666,1714192232657,-587.0,0.00023954,2]
[323718667,1714192232666,-447.0,0.0002411,2]
[323718668,1714192232676,-150.0,0.0002415,11]
[323718669,1714192232685,-447.0,0.00024164,2]
[323718670,1714192232695,-152.68547924,0.00024603,2]
[323718671,1714192232704,-601.89285867,0.00024657,2]
[323718672,1714192232713,-401.62671135,0.00024658,2]
[323718673,1714192232722,-447.0,0.00025373,2]
[323718674,1714192232731,-450.0,0.00025373,2]
[323718675,1714192232740,-339.135,0.00025429,2]
[323718676,1714192232750,-150.0,0.0002564,14]
[323718677,1714192232760,-153.0,0.00025973,2]
[323718678,1714192232769,-733.3,0.000261,2]
[323718679,1714192232778,-153.0,0.00026301,2]
[323718680,1714192232788,-153.0,0.00026301,2]
[323718681,1714192232797,-153.0,0.00026301,2]
[323718682,1714192232806,-153.0,0.00026301,2]
[323718683,1714192232815,-153.0,0.00026301,2]
[323718684,1714192232825,-153.0,0.00026301,2]
[323718685,1714192232834,-153.0,0.00026301,2]
[323718686,1714192232845,-153.0,0.00026301,2]
[323718687,1714192232854,-153.0,0.00026301,2]
[323718688,1714192232864,-153.0,0.00026301,2]
[323718689,1714192232873,-153.0,0.00026301,2]
[323718690,1714192232883,-153.0,0.00026301,2]
[323718691,1714192232892,-153.0,0.00026301,2]
[323718692,1714192232901,-153.0,0.00026301,2]
[323718693,1714192232911,-153.0,0.00026301,2]
[323718694,1714192232931,-153.0,0.00026301,2]
[323718695,1714192232947,-153.0,0.00026301,2]
[323718696,1714192232964,-153.0,0.00026301,2]
[323718697,1714192232981,-153.0,0.00026301,2]
[323718698,1714192232997,-153.0,0.00026301,2]
[323718699,1714192233015,-153.0,0.00026301,2]
[323718700,1714192233032,-153.0,0.00026301,2]
[323718701,1714192233049,-153.0,0.00026301,2]
[323718702,1714192233065,-153.0,0.00026301,2]
[323718703,1714192233082,-153.0,0.00026301,2]
[323718704,1714192233098,-153.0,0.00026301,2]
[323718705,1714192233115,-153.0,0.00026301,2]
[323718706,1714192233134,-153.0,0.00026301,2]
[323718707,1714192233151,-153.0,0.00026301,2]
[323718708,1714192233162,-153.0,0.00026301,2]
[323718709,1714192233178,-153.0,0.00026301,2]
[323718710,1714192233194,-153.0,0.00026301,2]
[323718711,1714192233206,-153.0,0.00026301,2]
[323718712,1714192233220,-153.0,0.00026301,2]
[323718713,1714192233236,-153.0,0.00026301,2]
[323718714,1714192233252,-153.0,0.00026301,2]
[323718715,1714192233266,-307.5279704,0.00026301,2]
[323718716,1714192233280,-153.0,0.00026301,2]
[323718717,1714192233297,-823.0,0.0002635,2]
[323718718,1714192233311,-447.0,0.00026388,2]
[323718719,1714192233324,-150.0,0.00026497,2]
[323718720,1714192233338,-447.0,0.00026581,2]
[323718721,1714192233352,-1000.0,0.000268,2]
[323718722,1714192233366,-1000.0,0.000268,3]
[323718723,1714192233380,-155.86208768,0.00027,2]
[323718724,1714192233394,-20677.92400859,0.00027,2]
[323718725,1714192233469,-19336.88926104,0.00027,2]
[323718726,1714192233482,-5000.0,0.00027,2]
[323718727,1714192233495,-8093.13938998,0.00027,2]
[323718728,1714192233509,-152.68547924,0.00027005,3]
[323718729,1714192233523,-153.0,0.00027123,2]
[323718730,1714192233537,-153.0,0.00027123,2]
[323718731,1714192233551,-153.0,0.00027123,2]
[323718732,1714192233564,-153.0,0.00027123,2]
[323718733,1714192233578,-153.0,0.00027123,2]
[323718734,1714192233592,-150.0,0.0002714,17]
[323718735,1714192233605,-154.94768953,0.00027274,2]
[323718736,1714192233619,-30659.33818019,0.00027297,3]
[323718737,1714192233635,-552.72494088,0.00027297,3]
[323718738,1714192233665,-689.69878912,0.00027297,3]
[323718739,1714192233683,-534.602378,0.00027297,3]
[323718816,1714192238431,-417.0,0.00020497,2]
[323718818,1714192238440,-417.0,0.00023497,2]
[323718820,1714192238449,-417.0,0.00026497,2]
[323718822,1714192238458,-737.348716,0.00027297,3]
[323718824,1714192238470,-1851.78392373,0.00027297,3]
[323718829,1714192238508,-9.83412878,0.00027297,3]
[323719033,1714192240211,-1005.28391519,0.00027297,3]
[323719349,1714192243274,-1045.00201133,0.00027297,3]
[323719351,1714192243286,-309.94763302,0.00027297,3]
[323719932,1714193146189,-154.82968734,0.00019772,2]
[323719933,1714193146210,-95.11013478,0.00019772,2]
[323719935,1714193346276,-154.82968734,0.00014721,2]
[323719936,1714193346301,-730.38126429,0.00014721,2]
[323719937,1714193346322,-154.82968734,0.00014722,2]
[323719938,1714193346342,-1202.83854325,0.00014723,2]
[323719939,1714193346362,-928.19592699,0.00014724,2]
[323719940,1714193346382,-312.79447259,0.00015,2]
[323719941,1714193346402,-157.13367824,0.00015,2]
[323719942,1714193346422,-81.58305745,0.00015,2]
[323719943,1714193348108,-1384.57646221,0.0001472,2]
[323719944,1714193371096,-187.38950934,0.00014719,2]
[323719945,1714193371246,-106.53227566,0.0001472,2]
[323719946,1714193371267,-939.04672329,0.00015,2]
[323719947,1714193371286,-1986.28436954,0.00015,2]
[323720111,1714193438309,-154.82968734,0.00015,2]
[323720113,1714193438318,-521.1072121,0.00015,2]
[323720115,1714193438327,-2778.37153564,0.00016118,2]
[323720117,1714193438337,-628.43790721,0.00016119,2]
[323720119,1714193438345,-157.13367824,0.0001612,2]
[323720121,1714193438354,-312.79447259,0.00018599,2]
[323720123,1714193438364,-164.7189292,0.000186,2]
[323720125,1714193438373,-154.84515485,0.00019574,2]
[323720127,1714193438382,-154.82968734,0.00019772,2]
[323720129,1714193438391,-1797.92129761,0.00019999,2]
[323720131,1714193438402,-302.58464142,0.00019999,2]
[323720133,1714193438412,-5.87174227,0.0002,2]